Workbook

Sheet 2025 - Feb 2026 Monthly
A1: Profit and Loss
A2: Synergy Home LLC
A3: January 1, 2025-February 28, 2026
B5: January 2025 | C5: February 2025 | D5: March 2025 | E5: April 2025 | F5: May 2025 | G5: June 2025 | H5: July 2025 | I5: August 2025 | J5: September 2025 | K5: October 2025 | L5: November 2025 | M5: December 2025 | N5: January 2026 | O5: February 2026 | Q5: Total
A6: Income
A7: Rental Property Income
A8: Remington
A9: 3 East Division (Park Place) | B9: 6700 | C9: 6050 | D9: 6700 | E9: 8000 | F9: 6750 | G9: 6100 | H9: 7513.31 | I9: 6850 | J9: 6850 | K9: 6900 | L9: 6900 | M9: 7060 | N9: 7100 | O9: 7400 | Q9: =B9+C9+D9+E9+F9+G9+H9+I9+J9+K9+L9+M9+N9+O9 -> 96873.31
A10: Late Fees | B10: 75 | C10: 75 | D10: 175 | E10: 100 | F10: 125 | G10: 95 | H10: 97 | I10: 55 | J10: 70 | K10: 74 | M10: 62 | O10: 60 | Q10: =B10+C10+D10+E10+F10+G10+H10+I10+J10+K10+L10+M10+N10+O10 -> 1063
A11: Total for 3 East Division (Park Place) | B11: =B9+B10 -> 6775 | C11: 6125 | D11: 6875 | E11: 8100 | F11: 6875 | G11: 6195 | H11: 7610.31 | I11: 6905 | J11: 6920 | K11: 6974 | L11: 6900 | M11: 7122 | N11: 7100 | O11: 7460 | Q11: =B11+C11+D11+E11+F11+G11+H11+I11+J11+K11+L11+M11+N11+O11 -> 97936.31
A13: Expenses
A14: Rental Property Expense
A15: Remington
A16: 3 East Division (Park Place)
A17: Collection Costs | D17: 125 | F17: 1225 | Q17: =B17+C17+D17+E17+F17+G17+H17+I17+J17+K17+L17+M17+N17+O17 -> 1350
A18: Insurance | B18: 443.12 | C18: 442.74 | D18: 417.74 | E18: 420.61 | F18: 417.8 | G18: 417.09 | H18: 417.13 | I18: 417.13 | J18: 417.13 | K18: 416.8 | L18: 417.49 | M18: 417.64 | N18: 418.56 | O18: 421.17 | Q18: 5902.15
A19: Repairs & Maintenance | B19: 724.1 | C19: 1272.42 | D19: 457.5 | E19: 686.81 | F19: 678 | G19: 736.91 | H19: 1260.44 | I19: 1830.63 | J19: 575 | K19: 280 | L19: 590.47 | M19: 1204.93 | N19: 758.67 | O19: 300 | Q19: 11355.88
A20: Taxes - Property | B20: 295 | C20: 295 | D20: 295 | E20: 297.42 | F20: 341 | G20: 341 | H20: 341 | I20: 341 | J20: 341 | K20: 338.61 | L20: 341 | M20: 341 | N20: 341 | O20: 341 | Q20: 4590.03
A21: Utilities | B21: 1068.92 | C21: 1089.58 | D21: 659.09 | E21: 1070.83 | F21: 1467.26 | G21: 1027.86 | H21: 982.53 | I21: 897.7 | J21: 1016.09 | K21: 947.73 | L21: 1036.2 | M21: 1120.83 | N21: 1246.02 | O21: 1047.53 | Q21: 14678.17
A22: Total for 3 East Division (Park Place) | B22: =SUM(B17:B21) -> 2531.14 | C22: =SUM(C17:C21) -> 3099.74 | D22: 1954.33 | E22: 2475.67 | F22: 4129.06 | G22: 2522.86 | H22: 3001.1 | I22: 3486.46 | J22: 2349.22 | K22: 1983.14 | L22: 2385.16 | M22: 3084.4 | N22: 2764.25 | O22: 2109.7 | Q22: 37876.23
A24: Gross Profit | B24: =B11-B22 -> 4243.86 | C24: =C11-C22 -> 3025.26 | D24: =D11-D22 -> 4920.67 | E24: =E11-E22 -> 5624.33 | F24: =F11-F22 -> 2745.94 | G24: =G11-G22 -> 3672.14 | H24: =H11-H22 -> 4609.21 | I24: =I11-I22 -> 3418.54 | J24: =J11-J22 -> 4570.78 | K24: =K11-K22 -> 4990.86 | L24: =L11-L22 -> 4514.84 | M24: =M11-M22 -> 4037.6 | N24: =N11-N22 -> 4335.75 | O24: =O11-O22 -> 5350.3 | Q24: =Q11-Q22 -> 60060.08
